bitfinex/quotes_ETHUSD_20240603
["timestamp","ask_amount","ask_price","bid_price","bid_amount"]
[1717419521329,2.12885839,3835.8,3835.2,3.0]
[1717419521330,1.10963996,3835.8,3835.2,3.0]
[1717419521526,0.5460877,3835.8,3835.3,5.05023]
[1717419521748,0.5460877,3835.9,3835.3,5.05023]
[1717419521948,1.10959929,3835.9,3835.5,2.60716]
[1717419522152,0.5460877,3835.9,3835.5,2.60716]
[1717419522932,0.5460877,3836.0,3835.5,2.60716]
[1717419523128,0.5460877,3835.9,3835.5,2.60716]
[1717419523966,0.5460877,3835.8,3835.5,2.60716]
[1717419524197,0.5460877,3835.7,3835.5,2.60716]
[1717419525130,0.5460877,3835.6,3835.5,2.60716]
[1717419525372,0.82064713,3835.7,3835.5,2.60716]
[1717419527719,0.82064713,3835.6,3835.5,2.60716]
[1717419529898,0.82064713,3835.7,3835.5,2.60716]
[1717419531785,0.82064713,3835.7,3835.5,3.412166]
[1717419532095,1.09456102,3836.3,3835.8,2.328]
[1717419532265,1.09456102,3836.5,3836.3,5.08177]
[1717419532581,1.09456102,3837.1,3836.5,2.60654]
[1717419532808,1.36544478,3837.2,3837.0,2.6062]
[1717419532809,1.09456102,3837.2,3837.0,2.6062]
[1717419533010,1.09456102,3837.5,3837.0,2.6062]
[1717419533216,1.09456102,3837.5,3837.3,2.60596]
[1717419533483,1.56530613,3837.7,3837.3,2.60596]
[1717419533484,1.09456102,3837.7,3837.3,2.60596]
[1717419533637,1.09456102,3837.7,3837.3,3.283996]
[1717419533840,1.36544478,3837.9,3837.3,3.283996]
[1717419533841,1.09456102,3837.9,3837.3,3.283996]
[1717419534210,1.09456102,3837.9,3837.6,2.60575]
[1717419534340,1.09456102,3838.2,3837.6,2.60575]
[1717419534841,1.09456102,3838.3,3837.6,2.60575]
[1717419535039,1.09456102,3838.2,3837.6,2.60575]
[1717419535241,2.4600058,3838.4,3837.6,2.60575]
[1717419535442,1.09456102,3838.4,3837.6,2.60575]
[1717419535888,1.09456102,3838.3,3837.6,2.60575]
[1717419536384,1.09456102,3838.4,3837.6,2.60575]
[1717419536973,1.09456102,3838.5,3837.8,2.60559]
[1717419537281,1.09456102,3838.5,3838.0,2.60548]
[1717419537478,1.09456102,3838.8,3838.0,2.60548]
[1717419537783,1.09456102,3838.9,3838.0,2.60548]
[1717419537988,1.09456102,3839.0,3838.2,2.60538]
[1717419538298,3.64933102,3839.2,3838.2,2.60538]
[1717419538601,0.50113637,3839.1,3838.3,0.55]
[1717419539572,6.46265562,3839.6,3838.4,2.60524]
[1717419539772,5.10243,3839.6,3838.4,2.60524]
[1717419541303,0.81548096,3839.5,3838.4,2.60524]
[1717419541602,5.10243,3839.6,3838.4,2.60524]
[1717419541603,5.91791096,3839.6,3838.4,2.60524]
[1717419541768,5.10243,3839.6,3838.4,2.60524]
[1717419541963,5.612673,3839.6,3838.4,2.60524]
[1717419542162,0.5432522,3839.5,3838.4,2.60524]
[1717419542359,5.612673,3839.6,3838.4,2.60524]
[1717419551203,5.612673,3839.6,3838.5,2.2824]
[1717419552202,5.612673,3839.6,3838.6,2.6051]
[1717419552511,0.5612673,3839.5,3838.6,2.6051]
[1717419554787,2.20768837,3839.6,3838.6,2.6051]
[1717419555432,2.6047,3839.3,3838.3,5.07619]
[1717419556626,2.6047,3839.3,3838.5,2.60517]
[1717419557324,2.6047,3839.3,3838.5,3.908777]
[1717419558414,2.6047,3839.3,3838.6,2.2822]
[1717419559275,2.60443,3839.7,3838.6,2.2822]
[1717419560475,0.56302113,3839.6,3838.7,2.60504]
[1717419561366,1.56401435,3839.4,3838.7,2.60504]
[1717419561675,0.56302113,3839.6,3839.3,1.862]
[1717419561676,1.56401435,3839.6,3839.3,1.862]
[1717419561974,1.56401435,3840.0,3839.3,1.862]
[1717419562171,1.56401435,3840.1,3839.4,2.4643]
[1717419562335,1.56401435,3839.9,3839.4,2.4643]
[1717419562530,1.56401435,3839.9,3839.5,2.60447]
[1717419565036,1.56401435,3839.8,3839.5,2.60447]
[1717419565574,2.12691683,3839.7,3839.5,2.60447]
[1717419565872,1.56401435,3839.7,3839.5,2.60447]
[1717419566349,1.56401435,3839.8,3839.5,3.111347]
[1717419566704,2.12691698,3839.9,3839.5,4.46647]
[1717419566843,1.56401435,3840.0,3839.5,4.46647]
[1717419567044,1.56401435,3840.1,3839.9,2.484]
[1717419567249,2.60353,3841.0,3840.0,2.85256]
[1717419567250,1.56401435,3840.2,3840.0,2.85256]
[1717419567568,2.60353,3841.0,3840.0,2.60416]
[1717419567569,1.56401435,3840.3,3840.0,2.60416]
[1717419568106,2.60353,3841.0,3839.9,2.484]
[1717419568107,1.56401435,3840.4,3840.2,2.60403]
[1717419568407,1.56401435,3840.6,3840.4,2.60389]
[1717419568743,2.60326,3841.4,3840.4,2.60389]
[1717419568744,1.56401435,3840.7,3840.4,2.60389]
[1717419568986,1.56401435,3840.8,3840.4,2.60389]
[1717419569855,1.56401435,3840.9,3840.4,2.60389]
[1717419570389,1.56401435,3841.0,3840.4,3.3457093]
[1717419570596,1.56401435,3841.1,3840.4,3.3457093]
[1717419571191,1.56401435,3841.1,3840.5,0.55]
[1717419571490,1.56901435,3841.5,3841.1,2.60342]
[1717419571853,0.005,3841.5,3841.1,2.60342]
[1717419572055,0.005,3841.5,3841.2,0.55]
[1717419573155,0.005,3841.5,3841.4,2.60321]
[1717419573492,0.005,3841.5,3841.4,5.01521]
[1717419574854,0.005,3841.5,3841.4,3.15321]
[1717419575055,0.005,3841.5,3841.4,8.01521]
[1717419575255,0.005,3841.5,3841.4,10.49721]
[1717419575471,0.005,3841.5,3841.4,11.5970852]
[1717419575696,0.005,3841.6,3841.4,11.5970852]
[1717419575899,0.005,3841.6,3841.5,3.55]
[1717419576264,0.005,3841.6,3841.5,5.9908]
[1717419576659,0.005,3841.7,3841.6,5.04388]
[1717419576962,0.005,3841.7,3841.6,10.07540972]
[1717419577663,0.00499997,3841.9,3841.8,2.60294]
[1717419577873,0.00499997,3841.9,3841.8,6.15294]
[1717419578300,0.00499997,3841.9,3841.8,8.59374]
[1717419578709,0.005,3842.4,3842.0,2.60277]
[1717419578911,0.005,3843.5,3842.3,1.862]
[1717419579227,0.005,3843.5,3842.9,2.60216]
[1717419579393,0.005,3843.5,3843.0,0.55]
[1717419580323,0.005,3843.5,3842.6,3.0]
[1717419580624,0.005,3843.5,3842.7,6.1398546]
[1717419580825,0.005,3843.5,3842.8,4.10018546]
[1717419581121,0.005,3843.5,3842.9,0.55]
[1717419584101,2.60682,3843.5,3842.8,3.0]
[1717419584411,2.60682,3843.5,3842.4,3.0]
[1717419584574,2.60682,3843.5,3842.4,0.446456]
[1717419585082,2.60682,3843.5,3842.2,9.7542]
[1717419585083,2.60202,3843.2,3842.2,9.7542]
[1717419585489,2.60202,3843.2,3842.2,12.35682]
[1717419585886,0.005,3843.5,3842.5,2.60244]
[1717419586696,0.005,3843.5,3842.6,0.55]
[1717419586894,0.005,3843.5,3842.7,0.315244]
[1717419587112,0.005,3843.5,3842.8,0.55]
[1717419587418,2.60189,3843.4,3842.8,0.55]
[1717419587615,2.60189,3843.4,3842.5,2.60244]
[1717419587797,2.60189,3843.4,3842.6,0.55]
[1717419588312,2.862579,3843.4,3842.6,0.55]
[1717419588526,2.862579,3843.4,3842.2,9.7542]
[1717419588527,2.60211,3843.1,3842.2,9.7542]
[1717419589371,2.60211,3843.1,3842.3,2.60257]
[1717419589662,0.005,3843.5,3842.2,9.7542]
[1717419589663,0.005,3843.5,3842.6,2.60234]
[1717419589837,2.60186,3843.4,3842.7,0.55]
[1717419591569,2.60186,3843.4,3842.6,2.60234]
[1717419591570,2.862546,3843.4,3842.6,2.60234]
[1717419593066,2.60207,3843.1,3842.2,12.35682]
[1717419593375,2.60227,3842.8,3842.2,7.41]
[1717419593533,0.260227,3842.7,3842.2,7.41]
[1717419593731,2.60227,3842.8,3841.8,2.6029]
[1717419594561,2.60227,3842.8,3841.9,0.70697206]
[1717419594759,2.60227,3842.8,3842.0,0.55]
[1717419597173,2.60227,3842.8,3842.0,1.25697206]
[1717419597369,2.60227,3842.8,3842.1,0.70697206]
[1717419597571,4.16496276,3842.8,3842.1,0.70697206]
[1717419597868,2.60227,3842.8,3842.1,0.70697206]
[1717419598365,4.16496276,3842.8,3842.1,0.70697206]
[1717419598574,2.60227,3842.8,3842.1,0.70697206]
[1717419598733,0.56254901,3842.7,3842.1,0.70697206]
[1717419599478,2.12518515,3842.7,3842.1,3.30970206]
[1717419599688,2.12518515,3842.7,3842.2,0.93597021]
[1717419599834,1.56263614,3843.0,3842.3,4.46459]
[1717419600036,1.56263614,3843.0,3842.5,2.60242]
[1717419600469,1.56263614,3843.0,3842.6,0.55]
[1717419600975,1.56263614,3842.9,3842.6,0.55]
[1717419601362,2.12512289,3842.8,3842.6,0.55]
[1717419601881,1.56263614,3842.9,3842.6,0.55]
[1717419602091,1.71889975,3842.9,3842.1,2.60268]
[1717419602234,1.71889975,3842.9,3841.7,7.41]
[1717419602235,4.16499614,3842.7,3841.7,7.41]
[1717419602440,1.56263614,3842.3,3841.7,7.41]
[1717419602848,1.56263614,3842.2,3841.7,7.41]
[1717419603066,1.56263614,3842.2,3841.7,12.61544259]
[1717419603381,2.60213,3843.1,3841.8,2.60293]
[1717419603382,0.56247884,3842.1,3841.8,2.60293]
[1717419603536,1.56263614,3842.5,3842.4,2.60254]
[1717419603987,1.56263614,3842.8,3842.4,3.15254]
[1717419604355,1.56263614,3842.8,3842.7,2.6023]
[1717419604491,1.56263614,3842.9,3842.7,3.1523]
[1717419604696,0.56247535,3842.8,3842.7,2.6023]
[1717419604895,2.12511149,3842.8,3842.7,3.1523]
[1717419605116,1.56263614,3842.8,3842.7,3.1523]
[1717419605313,1.56263614,3842.8,3842.7,2.6023]
[1717419605511,2.12511149,3842.8,3842.7,2.6023]
[1717419605717,2.12511149,3842.8,3842.7,2.86253]
[1717419605929,2.12511149,3842.8,3842.7,3.41253]
[1717419606132,0.56247535,3842.8,3842.7,3.41253]
[1717419606518,1.56263614,3842.9,3842.7,3.41253]
[1717419606723,1.56263614,3842.9,3842.8,0.55]
[1717419607033,2.12510195,3842.9,3842.8,1.132453]
[1717419607341,0.56246581,3842.9,3842.8,3.477353]
[1717419608138,1.56263614,3843.0,3842.9,2.6022]
[1717419608334,2.1250985,3843.0,3842.9,3.1522]
[1717419608837,2.12486174,3843.0,3842.9,3.1522]
[1717419609014,2.12486174,3843.0,3842.9,3.9723783]
[1717419609345,1.56239834,3843.0,3842.9,3.9723783]
[1717419609517,1.56239834,3843.0,3842.7,0.26023]
[1717419609518,0.5624634,3843.0,3842.7,0.26023]
[1717419609721,0.5624634,3843.0,3842.5,1.862]
[1717419609931,2.12485362,3843.0,3842.5,1.862]
[1717419610131,1.56239237,3843.1,3843.0,2.60213]
[1717419610296,2.12485201,3843.1,3843.0,2.60213]
[1717419610493,0.005,3843.5,3843.0,2.60213]
[1717419610700,1.5623823,3843.1,3843.0,2.60213]
[1717419610999,1.5623823,3843.1,3843.0,3.15213]
[1717419611501,2.12483992,3843.1,3843.0,3.15213]
[1717419611838,1.5623823,3843.1,3843.0,3.15213]
[1717419612347,0.56245762,3843.1,3843.0,3.15213]
[1717419612645,0.56245762,3843.1,3843.0,3.653543]
[1717419612869,2.12483992,3843.1,3843.0,3.653543]
[1717419613139,1.5623823,3843.2,3843.0,3.653543]
[1717419613307,1.5623823,3843.2,3843.1,0.55]
[1717419613901,2.1248414,3843.2,3843.1,0.55]
[1717419614158,1.5623823,3843.2,3843.1,0.55]
[1717419614631,2.1248414,3843.2,3842.6,2.60239]
[1717419614842,1.5623823,3843.1,3842.6,4.80743427]
[1717419615414,2.1056345,3843.2,3842.6,4.80743427]
[1717419615622,2.1056345,3843.2,3842.6,2.60239]
[1717419616023,2.66809757,3843.2,3842.6,2.60239]
[1717419616222,0.5432522,3843.1,3842.6,2.60239]
[1717419616453,0.5432522,3842.9,3842.6,2.60239]
[1717419617251,0.5432522,3842.8,3842.6,2.60239]
[1717419618211,0.5432522,3842.7,3842.6,2.60239]
[1717419618417,0.81548096,3842.8,3842.2,2.60261]
[1717419618613,0.81548096,3842.8,3842.3,0.55]
[1717419618821,0.54513834,3842.6,3842.3,0.55]
[1717419619014,0.54513834,3842.5,3842.3,0.55]
[1717419619445,0.54513834,3842.4,3842.3,0.55]
[1717419619626,0.81548096,3842.5,3842.3,0.55]
[1717419621352,1.08395085,3842.6,3842.3,0.55]
[1717419621353,0.81548096,3842.4,3842.3,0.55]
[1717419622224,1.08395085,3842.5,3842.3,0.55]
[1717419622427,1.56253558,3843.0,3842.3,0.55]
[1717419622428,0.81850952,3842.4,3842.3,0.55]
[1717419623417,1.08395085,3842.5,3842.3,0.55]
[1717419623946,0.81858894,3842.4,3842.3,0.55]
[1717419624475,1.08395085,3842.5,3841.8,4.46491]
[1717419624761,0.54573815,3842.1,3841.8,4.46491]
[1717419625056,0.54573815,3842.1,3841.8,7.11051763]
[1717419625423,0.54573815,3842.2,3842.1,2.60274]
[1717419625621,0.54573815,3842.2,3842.1,3.15274]
[1717419626453,0.54573815,3842.2,3842.1,2.60274]
[1717419626856,0.81860723,3842.3,3842.1,2.60274]
[1717419627060,0.81860723,3842.2,3842.1,2.60274]
[1717419627929,0.81860723,3842.2,3841.8,2.60293]
[1717419628148,0.54576338,3842.0,3841.8,2.60293]
[1717419628464,0.54576338,3842.0,3841.8,7.11053763]
[1717419628637,0.54576338,3842.0,3841.9,2.9765]
[1717419629168,0.54576338,3842.2,3842.0,2.60281]
[1717419629479,0.81860723,3842.3,3842.2,2.60267]
[1717419632273,1.08395085,3842.4,3841.8,2.60288]
[1717419632462,0.5457743,3841.9,3841.8,2.60288]
[1717419632677,0.81866146,3842.0,3841.8,3.15288]
[1717419632831,0.54577653,3841.9,3841.8,3.15288]
[1717419633356,0.81866146,3842.0,3841.8,3.15288]
[1717419634035,0.81866146,3842.0,3841.8,2.60288]
[1717419635966,0.81866146,3842.0,3841.4,4.46515]
[1717419636133,2.60253,3842.5,3841.4,2.60315]
[1717419636134,0.54572288,3841.8,3841.4,2.60315]
[1717419636339,0.54572288,3841.5,3841.4,2.60315]
[1717419636643,0.81866146,3841.6,3841.4,3.15315]
[1717419636840,0.5457416,3841.5,3841.4,3.15315]
[1717419637264,0.5457416,3841.5,3841.4,2.60315]
[1717419637464,1.08395085,3841.8,3841.4,2.60315]
[1717419637465,0.81866146,3841.6,3841.4,2.60315]
[1717419637681,0.81866146,3841.6,3841.2,13.34713332]
[1717419637899,0.5456858,3841.3,3841.0,2.60343]
[1717419638183,0.5456858,3841.2,3841.1,0.55]
[1717419638512,1.08395085,3841.6,3840.7,7.41]
[1717419638513,5.12579795,3841.3,3840.7,7.41]
[1717419638796,0.81843861,3840.8,3840.7,7.41]
[1717419639142,0.54532099,3840.8,3840.7,7.41]
[1717419639441,0.81843861,3840.8,3840.7,7.41]
[1717419640272,0.81843861,3840.8,3840.2,2.60399]
[1717419640273,0.81843861,3840.9,3840.2,2.60399]
[1717419640487,0.54502661,3840.5,3840.3,0.06023625]
[1717419640839,0.54502661,3840.4,3840.3,0.06023625]
[1717419641201,0.54502661,3840.5,3840.3,0.06023625]
[1717419641415,0.54502661,3840.4,3840.3,0.06023625]
[1717419642087,0.81843861,3840.5,3840.3,0.06023625]
[1717419642398,0.54436143,3840.5,3840.3,0.06023625]
[1717419642792,0.54436143,3840.4,3840.3,0.06023625]
[1717419642996,0.90052143,3840.4,3840.3,0.06023625]
[1717419643152,0.90019019,3840.4,3840.3,0.06023625]
[1717419643898,1.17459861,3840.4,3840.3,0.06023625]
[1717419644116,2.60403,3840.2,3839.4,7.41]
[1717419644392,2.60403,3840.2,3839.0,14.83482]
[1717419644393,3.14788883,3840.0,3839.0,22.24482]
[1717419644695,3.14799883,3839.8,3839.0,22.24482]
[1717419644888,3.14799883,3839.8,3839.0,24.10682]
[1717419644889,0.54369883,3839.8,3839.0,24.10682]
[1717419645051,0.54369883,3840.0,3839.4,1.862]
[1717419645452,0.54369883,3840.4,3839.5,2.60444]
[1717419645695,2.1988,3840.5,3839.6,0.446644]
[1717419645897,2.60378,3840.6,3839.6,0.446644]
[1717419646095,2.60378,3840.6,3839.8,1.862]
[1717419646450,0.54369883,3840.8,3840.1,2.60405]
[1717419646909,0.54369883,3841.4,3840.6,4.46571]
[1717419647075,0.54369883,3841.6,3840.7,0.996571]
[1717419647253,0.54369883,3841.7,3840.7,0.996571]
[1717419647453,3.01434666,3841.9,3840.7,0.996571]
[1717419647454,2.74249883,3841.9,3840.7,0.996571]
[1717419647762,2.60303,3841.7,3840.7,0.446571]
[1717419647951,2.60303,3841.7,3839.8,2.3]
[1717419647952,2.60346,3841.1,3839.8,2.60424]
[1717419648158,2.60346,3841.1,3839.1,2.3]
[1717419648159,2.60346,3841.1,3840.1,2.60408]
[1717419649458,3.14715883,3841.1,3840.1,2.60408]
[1717419650049,0.81554666,3841.3,3840.4,4.46583]
[1717419650050,0.54369883,3841.2,3840.4,4.46583]
[1717419650252,0.54369883,3841.3,3840.6,2.60373]
[1717419650570,1.56355949,3841.7,3840.5,0.501583]
[1717419650571,0.54369883,3841.8,3840.8,4.46557]
[1717419650737,2.60313,3841.6,3840.8,0.5517153]
[1717419650942,2.60313,3841.6,3840.0,2.4163]
[1717419650943,2.60332,3841.3,3840.0,5.02046]
[1717419651137,2.60332,3841.3,3840.1,0.55]
[1717419651456,2.60332,3841.3,3840.1,2.412]
[1717419651676,2.60332,3841.3,3840.2,0.743246]
[1717419651808,2.60332,3841.3,3840.1,2.412]
[1717419652446,3.14701883,3841.3,3840.1,2.412]
[1717419652660,2.1988,3841.2,3840.1,0.55]
[1717419652977,2.60343,3841.1,3840.1,0.55]
[1717419653179,2.60343,3841.1,3840.0,2.60416]
[1717419653379,2.60359,3840.9,3840.0,2.60416]
[1717419654579,0.54369883,3841.1,3840.0,2.60416]
[1717419654882,2.1988,3841.2,3840.1,0.55]
[1717419655054,2.1988,3841.2,3840.2,2.60398]
[1717419655258,2.60342,3841.1,3840.2,2.60398]
[1717419656000,3.13801188,3841.1,3840.2,2.60398]
[1717419656282,2.60365,3840.8,3839.8,7.41]
[1717419656487,2.60365,3840.8,3840.0,2.60416]
[1717419656845,2.60365,3840.8,3839.8,7.41]
[1717419657188,2.97184407,3840.8,3839.8,7.41]
[1717419658252,2.1988,3840.7,3839.8,7.41]
[1717419659183,2.6038,3840.6,3839.8,7.41]
[1717419659997,3.14749883,3840.6,3839.8,7.41]
[1717419660151,4.71110306,3840.6,3839.6,2.60442]
[1717419660347,2.60391,3840.4,3839.6,2.60442]
[1717419660553,2.60391,3840.4,3839.4,12.23]
[1717419660750,2.60391,3840.4,3839.5,3.0]
[1717419661467,2.1988,3840.3,3839.5,3.0]
[1717419662185,2.1988,3840.3,3839.4,12.23]
[1717419662186,2.60404,3840.2,3839.4,12.23]
[1717419662395,2.60418,3840.0,3839.4,12.23]
[1717419662567,2.60418,3840.0,3839.2,2.60468]
[1717419662888,2.60418,3840.0,3838.9,7.41]
[1717419663194,2.12661073,3839.9,3838.9,7.41]
[1717419663551,2.6043,3839.8,3838.9,7.41]
[1717419664263,0.56301755,3839.7,3838.9,7.41]
[1717419664472,4.16822314,3839.8,3838.9,8.411493]
[1717419665188,0.56301597,3839.7,3838.9,8.411493]
[1717419665497,2.12693911,3839.7,3838.9,8.411493]
[1717419666169,1.56392314,3839.6,3838.9,8.411493]
[1717419666563,1.56392314,3839.6,3838.9,7.41]
[1717419666901,1.56392314,3839.6,3838.8,2.60493]
[1717419667080,1.56392314,3839.5,3838.8,2.60493]
[1717419667280,2.12693911,3839.5,3839.4,1.862]
[1717419667479,0.81554666,3840.3,3839.4,1.862]
[1717419667480,1.56392314,3840.4,3839.5,2.60447]
[1717419667689,1.56392314,3840.6,3839.8,4.46628]
[1717419667872,1.56392314,3840.7,3839.8,2.60428]
[1717419668073,1.56392314,3840.6,3839.8,2.60428]
[1717419668272,1.56392314,3840.6,3840.1,2.60406]
[1717419668665,1.56392314,3840.7,3840.4,2.60387]
[1717419668867,1.56392314,3840.9,3840.4,2.60387]
[1717419669375,1.56392314,3841.0,3840.8,2.60362]
[1717419669584,1.56392314,3841.1,3840.8,2.60362]
[1717419669893,1.56392314,3841.1,3840.4,2.60386]
[1717419670093,2.12667299,3841.0,3840.4,2.60386]
[1717419670295,1.56392314,3841.0,3840.4,2.60386]
[1717419670460,0.56274985,3841.5,3840.1,1.862]
[1717419670461,2.12667299,3840.9,3840.6,2.60374]
[1717419670802,1.56392314,3841.0,3840.6,2.60374]
[1717419670956,1.56392314,3841.1,3840.6,2.60374]
[1717419671155,1.56392314,3841.2,3840.6,2.60374]
[1717419671360,0.56274484,3841.1,3840.6,2.60374]
[1717419671603,1.56392314,3841.0,3840.6,2.60374]
[1717419672023,1.72031545,3841.0,3840.2,2.60399]
[1717419672321,1.56392314,3840.8,3839.6,7.41]
[1717419672520,1.56392314,3840.3,3839.6,7.41]
[1717419672744,1.56392314,3840.2,3839.6,7.41]
[1717419672897,2.60375,3840.7,3839.6,7.41]
[1717419672898,1.56392314,3840.3,3839.6,7.41]
[1717419673607,4.32562077,3840.2,3839.1,7.41]
[1717419673776,1.02395383,3840.6,3839.2,2.60464]
[1717419673777,1.56392314,3840.0,3839.2,2.60464]
[1717419673982,0.480255,3840.6,3839.2,2.60464]
[1717419673983,2.12682077,3839.9,3839.2,2.60464]
[1717419674205,1.56392314,3839.9,3839.4,2.60451]
[1717419674632,1.56392314,3840.2,3839.4,2.60451]
[1717419674929,1.56392314,3840.1,3839.4,2.60451]
[1717419675128,2.60418,3840.0,3839.1,7.41]
[1717419675340,4.16810314,3840.0,3839.1,7.41]
[1717419675497,2.12685981,3839.9,3839.1,7.41]
[1717419675696,2.1988,3839.8,3839.1,7.41]
[1717419675907,4.73126981,3839.7,3839.1,7.41]
[1717419676102,4.73126981,3839.7,3838.5,6.97408419]
[1717419676103,2.6045,3839.5,3838.5,12.10738419]
[1717419676637,2.12697678,3839.4,3838.5,10.01512]
[1717419676937,2.12697678,3839.3,3838.5,10.01512]
[1717419677157,1.56392314,3839.3,3838.5,10.01512]
[1717419677300,2.60476,3839.2,3838.5,7.41]
[1717419677500,2.60476,3839.2,3838.2,12.23]
[1717419677824,0.56308183,3839.1,3838.2,12.23]
[1717419678005,0.56308183,3839.1,3838.3,3.0]
[1717419678193,0.51308183,3839.1,3838.3,2.95]
[1717419678393,0.5834536,3839.0,3838.3,2.95]
[1717419678819,0.5834536,3839.0,3838.2,12.23]
[1717419679002,2.14737674,3839.0,3838.2,12.23]
[1717419679202,0.5834536,3839.0,3838.2,12.23]
[1717419679862,3.14862883,3838.9,3838.2,12.23]
[1717419680021,0.61118482,3838.8,3838.2,12.23]
[1717419680823,0.61118482,3838.8,3837.7,7.41]
[1717419681124,3.14873883,3838.7,3837.7,7.41]
[1717419681679,4.7129579,3838.7,3837.7,7.41]
[1717419681854,0.54369883,3838.6,3837.7,7.41]
[1717419682179,4.16925907,3838.7,3837.7,7.41]
[1717419682180,1.15766777,3838.5,3837.7,7.41]
[1717419682525,0.54369883,3838.6,3837.7,7.41]
[1717419683821,0.54369883,3838.6,3837.8,2.60565]
[1717419684046,3.14873883,3838.7,3837.8,2.60565]
[1717419685272,3.14873883,3838.7,3837.8,4.46765]
[1717419685438,2.60504,3838.7,3837.8,2.60565]
[1717419685948,3.92146929,3838.7,3837.8,2.60565]
[1717419687139,0.54369883,3838.7,3837.8,4.46765]
[1717419687503,0.54369883,3839.2,3838.3,2.60528]
[1717419687629,0.54369883,3839.3,3838.3,2.60528]
[1717419687823,0.54369883,3839.4,3838.4,0.446728]
[1717419688051,5.34702883,3839.5,3838.5,2.60515]
[1717419688266,5.34702883,3839.5,3838.4,0.446728]
[1717419688267,0.54369883,3839.5,3838.9,2.60488]
[1717419688572,0.54369883,3839.7,3838.9,2.60488]
[1717419689069,0.54369883,3839.7,3838.9,3.051568]
[1717419689253,0.54369883,3839.7,3838.9,2.60488]
[1717419689577,0.54369883,3839.6,3838.9,2.60488]
[1717419689873,3.14814883,3839.6,3838.5,2.60518]
[1717419690067,3.14814883,3839.6,3838.6,3.0]
[1717419690432,3.14814883,3839.6,3838.7,2.60501]
[1717419690742,3.14814883,3839.6,3838.8,0.560501]
[1717419690973,0.54369883,3839.7,3839.0,2.60481]
[1717419691493,0.54369883,3839.9,3839.0,2.60481]
[1717419691665,0.54369883,3839.9,3838.9,0.55]
[1717419691666,0.54369883,3840.0,3839.3,2.60461]
[1717419691990,4.80266,3840.5,3839.3,2.60461]
[1717419691991,0.54369883,3840.3,3839.3,2.60461]
[1717419692199,0.54369883,3840.3,3839.6,2.60441]
[1717419693155,0.54369883,3840.4,3839.6,2.60441]
[1717419693355,0.54369883,3840.5,3839.6,2.60441]
[1717419694800,0.54369883,3840.5,3839.9,2.60418]
[1717419695171,1.56388576,3841.0,3839.9,2.60418]
[1717419695172,0.54369883,3840.8,3839.9,2.60418]
[1717419696257,0.54369883,3840.7,3839.9,2.60418]
[1717419696457,0.54369883,3840.6,3839.6,7.41]
[1717419696707,3.87023048,3840.8,3839.6,7.41]
[1717419696708,0.54369883,3840.5,3839.7,3.55]
[1717419697560,0.54369883,3840.4,3839.7,3.55]
[1717419697978,0.54369883,3840.4,3839.7,0.55]
[1717419698191,0.54369883,3840.3,3839.7,0.55]
[1717419700360,0.54369883,3840.4,3839.8,2.60427]
[1717419700800,1.09125149,3840.7,3839.8,2.60427]
[1717419700801,0.54369883,3840.5,3839.8,2.60427]
[1717419701125,0.81554666,3840.7,3839.8,2.60427]
[1717419701126,0.54369883,3840.7,3839.8,2.60427]
[1717419701410,0.54369883,3840.5,3839.8,2.60427]
[1717419701980,0.54369883,3840.4,3839.8,2.60427]
[1717419702530,0.54369883,3840.4,3840.1,2.60406]
[1717419702680,1.56352125,3840.9,3840.1,2.60406]
[1717419702681,0.54369883,3840.9,3840.7,2.60364]
[1717419702865,2.9229283,3841.4,3840.7,2.60364]
[1717419702866,0.54369883,3841.4,3840.7,2.60364]
[1717419703220,0.54369883,3841.5,3840.7,2.60364]
[1717419703423,0.67962338,3841.4,3840.7,2.60364]
[1717419703808,0.54369883,3841.3,3840.7,2.60364]
[1717419704195,0.67962338,3841.4,3840.7,2.60364]
[1717419704912,0.13592455,3841.4,3840.7,2.60364]
[1717419705220,0.54369883,3841.5,3840.7,2.60364]
[1717419705424,0.54369883,3841.6,3840.7,2.60364]
[1717419705937,3.14673883,3841.7,3840.7,2.60364]
[1717419706983,0.54369883,3841.7,3840.7,2.60364]
[1717419707289,0.54369883,3841.8,3840.7,2.60364]
[1717419707484,0.13592455,3841.7,3840.7,2.60364]
[1717419707686,0.54369883,3841.8,3841.1,2.60341]
[1717419708002,0.81554666,3842.0,3841.1,2.60341]
[1717419708003,0.54369883,3841.9,3841.1,2.60341]
[1717419708630,0.54369883,3842.0,3841.1,2.60341]
[1717419708991,5.34527883,3842.1,3841.1,2.60341]
[1717419709335,2.60278,3842.1,3841.1,2.863751]
[1717419709518,2.60278,3842.1,3841.1,2.60341]
[1717419709888,0.54369883,3842.2,3841.4,2.60318]
[1717419710532,0.81554666,3842.4,3841.4,2.60318]
[1717419710533,0.54369883,3842.4,3841.4,2.60318]
[1717419711240,0.54369883,3842.5,3841.6,2.60302]
[1717419711560,0.54369883,3842.7,3841.6,3.287032]
[1717419711706,0.54369883,3842.8,3841.6,3.287032]
[1717419711890,0.54369883,3842.7,3841.6,2.60302]
[1717419712231,0.54369883,3842.8,3841.6,2.60302]
[1717419713247,0.54369883,3842.8,3841.9,2.60284]
[1717419713385,3.14593883,3842.9,3841.9,2.60284]
[1717419713589,0.61602855,3842.8,3841.9,2.60284]
[1717419715189,0.54369883,3843.1,3842.2,2.60264]
[1717419715392,3.54369883,3843.2,3842.2,2.60264]
[1717419716110,2.60219,3843.0,3841.8,2.60291]
[1717419716537,3.14588883,3843.0,3841.8,2.60291]
[1717419716703,2.60237,3842.7,3841.6,7.41]
[1717419716897,2.60248,3842.5,3841.6,7.41]
[1717419717530,2.60248,3842.5,3841.7,0.55]
[1717419719618,4.80153,3842.2,3841.0,12.41385005]
[1717419719845,4.80153,3842.2,3841.1,3.0]
[1717419720002,0.480153,3842.1,3841.1,3.0]